fUSD/lending_fUSD_20250213
["ID","MTS","AMOUNT","RATE_DAILY","PERIOD"]
[352909978,1739413832895,-309.36901403,0.00015762,2]
[352909979,1739413832905,-4773.56111038,0.00015773,2]
[352909980,1739413832915,-309.36901403,0.00015777,2]
[352909981,1739413832924,-150.0,0.00015781,2]
[352909982,1739413832934,-150.0,0.00015783,2]
[352909983,1739413832944,-309.36901403,0.00015793,2]
[352909984,1739413832954,-150.0,0.00015796,2]
[352909985,1739413832963,-150.0,0.00015804,2]
[352909986,1739413832972,-309.36901403,0.00015808,2]
[352909987,1739413832982,-150.0,0.00015814,2]
[352909988,1739413832991,-150.0,0.00015815,2]
[352909989,1739413833001,-150.0,0.00015822,2]
[352909990,1739413833010,-309.36901403,0.00015823,2]
[352909991,1739413833020,-150.0,0.00015837,2]
[352909992,1739413833030,-309.36901403,0.00015839,2]
[352909993,1739413833040,-150.0,0.00015842,2]
[352909994,1739413833050,-309.36901403,0.00015854,2]
[352909995,1739413833059,-309.36901403,0.00015869,2]
[352909996,1739413833069,-150.0,0.0001588,2]
[352909997,1739413833079,-304.74891733,0.00015883,2]
[352909998,1739413833089,-309.36901403,0.00015885,2]
[352909999,1739413833099,-4773.56111038,0.00015889,2]
[352910000,1739413833109,-1402.0,0.0001589,2]
[352910001,1739413833119,-1000.0,0.0001589,2]
[352910002,1739413833128,-4773.56111038,0.00015891,2]
[352910003,1739413833139,-9547.12222076,0.00015893,2]
[352910004,1739413833148,-398.5509042,0.000159,2]
[352910005,1739413833158,-2042.90209692,0.000159,2]
[352910006,1739413833167,-309.36901403,0.000159,2]
[352910007,1739413833177,-377.45793516,0.000159,2]
[352910008,1739413833187,-150.08654129,0.000159,2]
[352910009,1739413833198,-376.09006258,0.000159,2]
[352910010,1739413833207,-3358.102,0.00015901,2]
[352910011,1739413833217,-173.818,0.00015901,2]
[352910012,1739413833227,-150.0,0.00015903,2]
[352910013,1739413833237,-638.0,0.00015903,2]
[352910014,1739413833249,-569.0,0.00015903,2]
[352910015,1739413833259,-1786.0,0.00015903,2]
[352910016,1739413833268,-783.0,0.00015903,2]
[352910017,1739413833280,-908.0,0.00015903,2]
[352910018,1739413833291,-1265.0,0.00015903,2]
[352910019,1739413833301,-2956.0,0.00015903,2]
[352910020,1739413833311,-4027.0,0.00015903,2]
[352910021,1739413833321,-539.0,0.00015903,2]
[352910022,1739413833331,-1111.939,0.00015903,2]
[352910023,1739413833341,-1273.0,0.00015903,2]
[352910024,1739413833350,-2025.0,0.00015903,2]
[352910025,1739413833360,-150.772,0.00015903,2]
[352910026,1739413833369,-150.0,0.00015907,2]
[352910027,1739413833379,-150.0,0.00015908,2]
[352910028,1739413833389,-150.0,0.00015917,2]
[352910029,1739413833398,-150.47891523,0.00015919,2]
[352910030,1739413833408,-2042.90209684,0.00015956,2]
[352910031,1739413833418,-4773.56111038,0.00015957,2]
[352910032,1739413833427,-150.0,0.00015959,2]
[352910033,1739413833437,-150.0,0.00015963,2]
[352910034,1739413833446,-991.99719128,0.00015967,2]
[352910035,1739413833456,-500.0,0.00015973,2]
[352910036,1739413833465,-150.0,0.00015977,2]
[352910037,1739413833474,-177.9664992,0.0001598,4]
[352910038,1739413833484,-34515.22415133,0.0001598,2]
[352910039,1739413833607,-1906.54009659,0.0001598,2]
[352910040,1739413833619,-1270.4894064,0.0001598,2]
[352910041,1739413833630,-3758.32180999,0.0001598,2]
[352910042,1739413833642,-40825.92241065,0.0001598,2]
[352910043,1739413833655,-46634.18419837,0.0001598,2]
[352910044,1739413833667,-5096.0,0.0001598,2]
[352910045,1739413833727,-385.88799732,0.000159,2]
[352910046,1739413833737,-131.70243571,0.0001598,2]
[352910047,1739413833748,-1959.9999998,0.0001598,2]
[352910048,1739413833766,-107353.23212016,0.0001598,2]
[352910049,1739413833776,-398.55090418,0.00015983,2]
[352910050,1739413833787,-539.8595902,0.00015989,2]
[352910051,1739413833797,-201.95491116,0.0001599,2]
[352910052,1739413833807,-300.0,0.00015999,2]
[352910053,1739413833816,-193.87266842,0.00015999,7]
[352910054,1739413833826,-500.0,0.00015999,2]
[352910055,1739413833836,-999.0,0.00015999,2]
[352910056,1739413833846,-812898.45936277,0.00016,2]
[352910063,1739413838116,-433.84739087,0.00014459,2]
[352910064,1739413838127,-433.84739085,0.00014559,2]
[352910065,1739413838138,-508.8155824,0.0001568,2]
[352910066,1739413838150,-3915.0,0.00015903,2]
[352910067,1739413838161,-501434.76509322,0.00016,2]
[352910068,1739413838191,-19019.52023974,0.00016,2]
[352910069,1739413838205,-821.72577297,0.00016,2]
[352910079,1739413840393,-978.09179164,0.00015903,2]
[352910111,1739413846190,-166.69014338,0.000159,2]
[352910112,1739413846200,-29.90820836,0.00015903,2]
[352910113,1739413846210,-502.71939842,0.00015903,2]
[352910118,1739413848858,324.0,0.00015,30]
[352910120,1739414602165,500.0,0.00015,15]
[352910121,1739414631114,1000.0,0.0002,120]
[352910122,1739414649559,2095.19852247,0.0002,120]
[352910123,1739414783533,1400.0,0.0002,120]
[352910124,1739414813465,1342.0,0.0002,120]
[352910125,1739414881602,13643.976,8.973e-05,2]
[352910129,1739414958447,10000.0,0.00020741,60]
[352910133,1739415032384,-368.49929451,0.00012919,2]
[352910134,1739415032399,-232.52070549,0.00012919,2]
[352910135,1739415032409,-124.62251496,0.00012959,2]
[352910136,1739415032434,-25.37748504,0.00012959,2]
[352910137,1739415032444,-550.0,0.00013,2]
[352910138,1739415032454,-150.0,0.00014062,2]
[352910139,1739415032467,-150.0,0.00014211,2]
[352910140,1739415032477,-1000.0,0.000144,2]
[352910141,1739415032487,-131.87032999,0.00014709,2]
[352910142,1739415032498,-1168.12967001,0.00014709,2]
[352910143,1739415032508,-364.29,0.00014758,2]
[352910144,1739415032517,-219.03,0.00014768,2]
[352910145,1739415032527,-516.88,0.00014824,2]
[352910146,1739415032537,-1000.0,0.00014857,2]
[352910147,1739415032547,-11.05933945,0.00014999,2]
[352910148,1739415032562,-288.94066055,0.00014999,2]
[352910149,1739415032572,-1911.55234193,0.00015,2]
[352910150,1739415032583,-1015.48747843,0.00015,2]
[352910151,1739415032594,-600.0,0.00015,2]
[352910152,1739415032603,-1000.0,0.00015,2]
[352910153,1739415032614,-601.02,0.00015183,2]
[352910154,1739415032624,-152.0,0.00015376,3]
[352910155,1739415032635,-400.0,0.000155,5]
[352910156,1739415032645,-150.0,0.00015562,2]
[352910157,1739415032656,-152.0,0.00015578,4]
[352910158,1739415032666,-439.94,0.000156,2]
[352910159,1739415032676,-862.58,0.000156,2]
[352910160,1739415032686,-900.0,0.000156,5]
[352910161,1739415032695,-217.54315013,0.00015628,2]
[352910162,1739415032706,-627.0202449,0.0001568,2]
[352910163,1739415032716,-498.43,0.00015681,2]
[352910164,1739415032726,-498.77,0.00015681,2]
[352910165,1739415032735,-503.04,0.00015682,2]
[352910166,1739415032745,-495.33,0.00015683,2]
[352910167,1739415032754,-491.95,0.00015683,2]
[352910168,1739415032764,-500.6,0.00015686,2]
[352910169,1739415032774,-498.05,0.0001569,2]
[352910170,1739415032784,-494.13,0.00015696,2]
[352910171,1739415032794,-1400.0,0.000157,5]
[352910172,1739415032804,-496.5,0.00015707,2]
[352910173,1739415032814,-509.69,0.00015726,2]
[352910174,1739415032824,-150.0,0.00015726,2]
[352910175,1739415032833,-150.0,0.00015728,2]
[352910176,1739415032843,-150.0,0.00015731,2]
[352910177,1739415032853,-150.0,0.00015731,2]
[352910179,1739415032863,-150.0,0.00015734,2]
[352910181,1739415032872,-150.0,0.00015735,2]
[352910183,1739415032881,-150.0,0.00015736,2]
[352910185,1739415032890,-150.0,0.00015736,2]
[352910186,1739415032900,-150.0,0.00015741,2]
[352910187,1739415032909,-150.0,0.00015745,2]
[352910188,1739415032919,-150.0,0.0001575,2]
[352910189,1739415032928,-150.0,0.00015751,2]
[352910190,1739415032937,-155.94515962,0.00015753,2]
[352910191,1739415032947,-155.94515964,0.00015753,2]
[352910192,1739415032956,-155.94515964,0.00015753,2]
[352910193,1739415032966,-155.94515964,0.00015753,2]
[352910194,1739415032975,-150.0,0.00015754,2]
[352910195,1739415032984,-1000.0,0.00015756,2]
[352910196,1739415032994,-501.51,0.00015756,2]
[352910197,1739415033007,-150.0,0.00015757,2]
[352910198,1739415033016,-150.0,0.00015757,2]
[352910199,1739415033026,-150.0,0.00015765,2]
[352910200,1739415033036,-150.0,0.00015771,2]
[352910201,1739415033047,-150.0,0.00015772,2]
[352910202,1739415033056,-150.0,0.00015773,2]
[352910203,1739415033066,-152.0,0.00015779,5]
[352910204,1739415033077,-150.0,0.0001578,2]
[352910205,1739415033088,-1000.0,0.00015781,2]
[352910206,1739415033099,-150.0,0.00015783,2]
[352910207,1739415033109,-150.0,0.00015784,2]
[352910208,1739415033119,-150.0,0.00015785,2]
[352910209,1739415033130,-612.66996741,0.00015789,2]
[352910210,1739415033140,-150.0,0.00015795,2]
[352910211,1739415033150,-150.0,0.00015795,2]
[352910212,1739415033174,-1900.0,0.000158,5]
[352910213,1739415033183,-1000.0,0.00015805,2]
[352910214,1739415033194,-501.58,0.00015808,2]
[352910215,1739415033204,-150.0,0.00015809,2]
[352910216,1739415033214,-150.0,0.00015811,2]
[352910217,1739415033225,-150.0,0.00015814,2]
[352910218,1739415033236,-438.88,0.00015823,2]
[352910219,1739415033246,-438.53,0.00015823,2]
[352910220,1739415033257,-150.0,0.00015823,2]
[352910221,1739415033268,-150.0,0.00015826,2]
[352910222,1739415033278,-150.0,0.00015826,2]
[352910223,1739415033289,-150.0,0.00015826,2]
[352910224,1739415033299,-150.0,0.00015827,2]
[352910225,1739415033308,-150.0,0.00015836,2]
[352910226,1739415033319,-150.0,0.00015839,2]
[352910227,1739415033328,-3337.73425,0.0001584,2]
[352910228,1739415033339,-150.0,0.00015844,2]
[352910229,1739415033349,-150.0,0.00015846,2]
[352910230,1739415033359,-150.0,0.00015846,2]
[352910231,1739415033370,-1273.0,0.00015847,2]
[352910232,1739415033380,-2026.658,0.00015847,2]
[352910233,1739415033390,-1109.0,0.00015847,2]
[352910234,1739415033400,-639.706,0.00015847,2]
[352910235,1739415033410,-150.0,0.00015847,2]
[352910236,1739415033420,-569.0,0.00015847,2]
[352910237,1739415033431,-1786.0,0.00015847,2]
[352910238,1739415033441,-2956.0,0.00015847,2]
[352910239,1739415033452,-1265.0,0.00015847,2]
[352910240,1739415033462,-908.0,0.00015847,2]
[352910241,1739415033472,-783.0,0.00015847,2]
[352910242,1739415033482,-4027.0,0.00015847,2]
[352910243,1739415033492,-539.0,0.00015847,2]
[352910244,1739415033502,-150.0,0.00015847,2]
[352910245,1739415033513,-150.0,0.00015847,2]
[352910246,1739415033523,-3915.0,0.00015847,2]
[352910247,1739415033533,-509.2,0.00015847,2]
[352910248,1739415033543,-150.0,0.00015849,2]
[352910249,1739415033552,-150.0,0.00015852,2]
[352910250,1739415033562,-150.0,0.00015854,2]
[352910251,1739415033572,-150.0,0.00015854,2]
[352910252,1739415033582,-150.0,0.00015857,2]
[352910253,1739415033592,-150.0,0.00015862,2]
[352910254,1739415033602,-150.0,0.00015865,2]
[352910255,1739415033613,-150.0,0.00015866,2]
[352910256,1739415033623,-150.0,0.00015868,2]
[352910257,1739415033634,-1000.0,0.00015871,2]
[352910258,1739415033938,-150.0,0.00015876,2]
[352910259,1739415033949,-150.0,0.00015881,2]
[352910260,1739415033959,-150.0,0.00015882,2]
[352910261,1739415033969,-1000.0,0.00015888,2]
[352910262,1739415033979,-150.0,0.00015891,2]
[352910263,1739415033995,-304.74891733,0.00015891,2]
[352910264,1739415034005,-351.78765203,0.00015893,2]
[352910265,1739415034016,-351.78765203,0.00015894,2]
[352910266,1739415034027,-351.78765203,0.00015894,2]
[352910267,1739415034038,-351.78765203,0.00015895,2]
[352910268,1739415034048,-351.78765203,0.00015895,2]
[352910269,1739415034058,-351.78765203,0.00015896,2]
[352910270,1739415034068,-351.78765203,0.00015896,2]
[352910271,1739415034078,-351.78765203,0.00015897,2]
[352910272,1739415034090,-2975.397,0.00015897,2]
[352910273,1739415034100,-172.149,0.00015897,2]
[352910274,1739415034110,-150.0,0.00015897,2]
[352910275,1739415034120,-351.78765203,0.00015897,2]
[352910276,1739415034130,-351.78765203,0.00015898,2]
[352910277,1739415034140,-351.78765203,0.00015898,2]
[352910278,1739415034150,-351.78765203,0.00015899,2]
[352910279,1739415034160,-351.78765203,0.00015899,2]
[352910280,1739415034170,-284.67921728,0.000159,2]
[352910281,1739415034181,-150.0,0.000159,2]
[352910282,1739415034191,-351.78765203,0.000159,2]
[352910283,1739415034201,-2400.0,0.000159,5]
[352910284,1739415034211,-257.25866488,0.000159,2]
[352910285,1739415034221,-251.63862344,0.000159,2]
[352910286,1739415034231,-357.2546971,0.000159,2]
[352910287,1739415034240,-1000.0,0.00015908,2]
[352910288,1739415034250,-150.0,0.00015908,2]
[352910289,1739415034260,-500.0,0.00015908,2]
[352910290,1739415034270,-500.0,0.00015908,2]
[352910291,1739415034280,-500.0,0.00015908,2]
[352910292,1739415034290,-500.0,0.00015908,2]
[352910293,1739415034300,-500.0,0.00015908,2]
[352910294,1739415034309,-500.0,0.00015908,2]
[352910295,1739415034319,-500.0,0.00015908,2]
[352910296,1739415034329,-500.0,0.00015908,2]
[352910297,1739415034339,-500.0,0.00015908,2]
[352910298,1739415034349,-500.0,0.00015908,2]
[352910299,1739415034359,-500.0,0.00015908,2]
[352910300,1739415034369,-500.0,0.00015908,2]
[352910301,1739415034379,-500.0,0.00015908,2]
[352910302,1739415034388,-851.0,0.00015908,2]
[352910303,1739415034398,-1000.0,0.00015909,2]
[352910304,1739415034409,-150.0,0.0001591,2]
[352910305,1739415034420,-150.0,0.00015911,2]
[352910306,1739415034434,-150.0,0.00015914,2]
[352910307,1739415034444,-522.0,0.00015929,2]
[352910308,1739415034454,-150.0,0.00015932,2]
[352910309,1739415034464,-150.0,0.00015933,2]
[352910310,1739415034475,-150.0,0.00015933,2]
[352910311,1739415034484,-150.59425313,0.00015936,2]
[352910312,1739415034494,-150.0,0.00015937,2]
[352910313,1739415034504,-150.0,0.0001594,2]
[352910314,1739415034514,-1000.0,0.00015943,2]
[352910315,1739415034525,-150.0,0.00015945,2]
[352910316,1739415034536,-150.0,0.00015946,2]
[352910317,1739415034546,-150.0,0.00015947,2]
[352910318,1739415034556,-150.0,0.00015947,2]
[352910319,1739415034567,-150.0,0.00015947,2]
[352910320,1739415034577,-150.0,0.0001595,2]
[352910321,1739415034587,-150.0,0.00015951,2]
[352910322,1739415034598,-150.0,0.00015954,2]
[352910323,1739415034607,-150.0,0.0001596,2]
[352910324,1739415034618,-150.0,0.00015961,2]
[352910325,1739415034628,-1361.0,0.00015963,2]
[352910326,1739415034638,-155.94515962,0.00015973,2]
[352910327,1739415034648,-155.94515964,0.00015973,2]
[352910328,1739415034659,-155.94515964,0.00015973,2]
[352910329,1739415034669,-155.94515964,0.00015973,2]
[352910330,1739415034679,-501.3886694,0.00015973,2]
[352910331,1739415034689,-152.68992469,0.00015973,2]
[352910332,1739415034700,-500.0,0.00015973,2]
[352910333,1739415034710,-354.82237651,0.00015973,2]
[352910334,1739415034721,-162.40523763,0.00015973,2]
[352910335,1739415034731,-228.92,0.00015977,2]
[352910336,1739415034740,-150.0,0.00015977,2]
[352910337,1739415034753,-155.38734,0.00015977,2]
[352910338,1739415034763,-182.20860672,0.0001598,2]
[352910339,1739415034774,-152.0,0.00015981,6]
[352910340,1739415034784,-284.67921727,0.00015983,2]
[352910341,1739415034794,-150.0,0.00015988,2]
[352910342,1739415034805,-150.0,0.00015988,2]
[352910343,1739415034815,-476.7504247,0.00015989,2]
[352910344,1739415034825,-3289.7318892,0.00015989,2]
[352910345,1739415034836,-7983.0984849,0.00015989,2]
[352910346,1739415034847,-470.6252606,0.00015989,2]
[352910347,1739415034857,-3913.5378533,0.00015989,2]
[352910348,1739415034868,-150.0,0.0001599,2]
[352910349,1739415034879,-38442.41732591,0.0001599,2]
[352910350,1739415034916,-68416.87479304,0.0001599,2]
[352910351,1739415034930,-234100.26016933,0.0001599,2]
[352910352,1739415034948,-1008.0,0.00015847,2]
[352910353,1739415034959,-20725.93524887,0.0001599,2]
[352910354,1739415034974,-426.36644233,0.0001599,2]
[352910360,1739415038234,-1382.18618706,0.00014211,2]
[352910361,1739415038245,-150.0,0.00015847,2]
[352910362,1739415038255,-17909.52594451,0.0001599,2]
[352910363,1739415038267,-7270.766872,0.0001599,2]
[352910365,1739415038279,-8661.20091581,0.0001599,2]
[352910366,1739415038293,-10748.23128327,0.0001599,2]
[352910367,1739415038307,-1463.58,0.0001599,2]
[352910368,1739415038319,-594.53024969,0.0001599,2]
[352910369,1739415038340,-17815.0,0.0001599,2]
[352910370,1739415038352,-1030.0,0.0001599,2]
[352910371,1739415038364,-893.65805981,0.0001599,2]
[352910372,1739415038378,-2052.40387248,0.0001599,2]
[352910373,1739415038390,-799.28940924,0.0001599,2]
[352910374,1739415038402,-447.50332363,0.0001599,2]
[352910375,1739415038414,-75202.59961879,0.0001599,2]
[352910376,1739415038427,-1911.57,0.0001599,2]
[352910377,1739415038453,-885.92346149,0.0001599,2]
[352910378,1739415038466,-273.48009223,0.0001599,2]
[352910379,1739415038478,-582.27999921,0.0001599,2]
[352910382,1739415038672,-5757.86921818,0.0001599,2]
[352910383,1739415038684,-1704.75408117,0.0001599,2]
[352910385,1739415038696,-639.00005176,0.0001599,2]
[352910386,1739415038707,-610.22697178,0.0001599,2]
[352910387,1739415038719,-2190.85802825,0.0001599,2]
[352910421,1739415040518,-5645.59999995,0.0001599,2]
[352910422,1739415040549,-436.83110195,0.0001599,2]
[352910423,1739415040560,-1953.315,0.0001599,2]
[352910424,1739415040572,-1728.77262585,0.0001599,2]
[352910425,1739415040583,-1925.36,0.0001599,2]
[352910426,1739415040594,-2256.50655973,0.0001599,2]
[352910427,1739415040658,-72921.21048774,0.0001599,2]
[352910428,1739415040669,-201.95491116,0.0001599,2]
[352910429,1739415040680,-509.91,0.00015991,2]
[352910430,1739415040692,-1000.0,0.00015991,2]
[352910431,1739415040702,-150.0,0.00015995,2]
[352910432,1739415040713,-508.64,0.00015998,2]
[352910433,1739415040725,-300.0,0.00015999,2]
[352910434,1739415040735,-300.0,0.00015999,2]
[352910435,1739415040746,-300.0,0.00015999,2]
[352910436,1739415040757,-300.0,0.00015999,2]
[352910437,1739415040767,-500.0,0.00015999,2]
[352910438,1739415040778,-999.0,0.00015999,2]
[352910439,1739415040788,-43349.94556078,0.00016,2]
[352910440,1739415040903,-2856.93372,0.00016,2]
[352910441,1739415040914,-30311.46399219,0.00016,2]
[352910442,1739415040926,-574.72339879,0.00016,2]
[352910444,1739415040937,-1399.79399091,0.00016,2]
[352910445,1739415040958,-1053.91278966,0.00016,2]
[352910446,1739415040969,-535.02444576,0.00016,2]
[352910447,1739415040980,-1208.2028922,0.00016,2]
[352910448,1739415040997,-2499.17668573,0.00016,2]
[352910451,1739415041049,-7047.80437653,0.00016,2]
[352910453,1739415041061,-4702.1225,0.00016,2]
[352910461,1739415043347,-284.74638608,0.00016,2]
[352910462,1739415043561,-1797.54496574,0.00016,2]
[352910463,1739415043720,-254.39513532,0.00016,2]
[352910468,1739415046562,-608.83533071,0.00016,2]
[352910469,1739415046575,-3168.93461459,0.00016,2]
[352910470,1739415046754,-365130.47830635,0.00016,2]
[352910471,1739415046765,-524266.35343133,0.00016,2]
[352910472,1739415046777,-374289.17308444,0.00016,2]
[352910473,1739415046834,-971.29778049,0.00016,2]
[352910474,1739415046846,-1168.084298,0.00016,2]
[352910488,1739415119582,359.1,0.00010137,2]
[352910489,1739415390176,85622.7584,8.973e-05,2]
[352910490,1739415504136,409.9757,8.973e-05,2]
[352910491,1739415661143,200.0,0.0002,120]
[352910492,1739415852918,4004.09535669,0.0001,2]
[352910493,1739416043120,-573.11,0.00012939,2]
[352910494,1739416043143,-150.0,0.00013586,2]
[352910495,1739416043165,-2167.730399,0.00014162,2]
[352910496,1739416043186,-150.0,0.00014233,2]
[352910497,1739416043208,-150.0,0.00014233,2]
[352910498,1739416043230,-1200.0,0.00014555,2]
[352910499,1739416043254,-159.21955644,0.0001477,2]
[352910500,1739416043277,-219.03,0.00014774,2]
[352910501,1739416043302,-396.55,0.00014808,2]
[352910502,1739416043323,-23900.0,0.00014848,2]
[352910503,1739416043346,-250.0,0.00014852,2]
[352910504,1739416043368,-4219.18,0.00014853,2]
[352910505,1739416043391,-1145.77,0.00014915,2]
[352910506,1739416043413,-490.32,0.00015051,2]
[352910507,1739416043434,-438.88,0.00015078,2]
[352910508,1739416043456,-508.97,0.00015117,2]
[352910509,1739416043478,-1000.0,0.00015117,2]
[352910510,1739416043502,-1008.0,0.00015192,2]
[352910511,1739416043523,-1109.0,0.00015192,2]
[352910512,1739416043547,-573.11,0.00015203,2]
[352910513,1739416043567,-443.01,0.00015378,2]
[352910514,1739416043589,-2017.07,0.00015378,2]
[352910515,1739416043610,-310.7868512,0.00015425,2]
[352910516,1739416043631,-310.7868512,0.00015507,2]
[352910517,1739416043652,-310.7868512,0.00015589,2]
[352910518,1739416043674,-310.7868512,0.00015644,2]
[352910519,1739416043697,-1000.0,0.00015651,2]
[352910520,1739416043719,-418.0134966,0.0001568,2]
[352910521,1739416043740,-356.72989999,0.00015713,2]
[352910522,1739416043762,-310.7868512,0.00015726,2]
[352910523,1739416043787,-150.0,0.00015728,2]
[352910524,1739416043808,-150.0,0.00015728,2]
[352910525,1739416043830,-150.0,0.00015735,2]
[352910526,1739416043852,-502.64,0.00015747,2]
[352910527,1739416043873,-500.68,0.00015747,2]
[352910528,1739416043896,-150.0,0.00015757,2]
[352910529,1739416043918,-150.0,0.00015771,2]
[352910530,1739416043940,-150.0,0.00015777,2]
[352910531,1739416043963,-150.0,0.00015788,2]
[352910532,1739416043989,-150.0,0.00015794,2]
[352910533,1739416044011,-438.88,0.000158,2]
[352910534,1739416044032,-200.0,0.000158,4]
[352910535,1739416044216,-200.0,0.000158,5]
[352910536,1739416044239,-200.0,0.000158,5]
[352910537,1739416044261,-201.28,0.000158,7]
[352910538,1739416044283,-1000.0,0.000158,2]
[352910539,1739416044309,-1000.0,0.000158,2]
[352910540,1739416044331,-507.63,0.00015802,2]
[352910541,1739416044356,-150.0,0.00015806,2]
[352910542,1739416044380,-310.7868512,0.00015808,2]
[352910543,1739416044402,-1512.34,0.00015808,2]
[352910544,1739416044426,-150.0,0.00015809,2]
[352910545,1739416044450,-150.0,0.00015817,2]
[352910546,1739416044472,-438.71,0.00015835,2]
[352910547,1739416044494,-1971.54,0.00015835,2]
[352910548,1739416044516,-150.0,0.00015835,2]
[352910549,1739416044538,-985.93,0.00015835,2]
[352910550,1739416044562,-984.97,0.00015835,2]
[352910551,1739416044584,-150.0,0.00015847,2]
[352910552,1739416044607,-180.302,0.00015847,2]
[352910553,1739416044629,-167.379,0.00015847,2]
[352910554,1739416044649,-154.95,0.00015847,2]
[352910555,1739416044672,-3915.0,0.00015847,2]
[352910556,1739416044693,-150.0,0.00015847,2]
[352910557,1739416044715,-2025.0,0.00015847,2]
[352910558,1739416044737,-701.073,0.00015847,2]
[352910559,1739416044760,-569.0,0.00015847,2]
[352910560,1739416044782,-638.0,0.00015847,2]
[352910561,1739416044804,-1786.0,0.00015847,2]
[352910562,1739416044826,-2947.971,0.00015847,2]
[352910563,1739416044849,-472.627,0.00015847,2]
[352910564,1739416044871,-954.578,0.00015847,2]
[352910565,1739416044892,-4027.0,0.00015847,2]
[352910566,1739416044915,-539.0,0.00015847,2]
[352910567,1739416044936,-505.14,0.00015847,2]
[352910568,1739416044959,-3337.73425,0.0001585,2]
[352910569,1739416044982,-150.0,0.00015854,2]
[352910570,1739416045004,-150.0,0.00015854,2]
[352910571,1739416045026,-150.0,0.00015858,2]
[352910572,1739416045047,-310.7868512,0.00015863,2]
[352910573,1739416045069,-150.0,0.00015869,2]
[352910574,1739416045091,-150.0,0.00015878,2]
[352910575,1739416045111,-150.0,0.00015887,2]
[352910576,1739416045132,-150.7661367,0.00015887,2]
[352910577,1739416045155,-3507.38284374,0.0001589,2]
[352910578,1739416045176,-304.74891733,0.0001589,2]
[352910579,1739416045198,-203.34229805,0.000159,2]
[352910580,1739416045218,-150.76613659,0.00015907,2]
[352910581,1739416045242,-150.0,0.00015908,2]
[352910582,1739416045264,-150.0,0.00015908,2]
[352910583,1739416045286,-2380.318,0.0001591,2]
[352910584,1739416045313,-172.15,0.0001591,2]
[352910585,1739416045336,-1000.0,0.0001592,2]
[352910586,1739416045359,-1200.0,0.00015925,2]
[352910587,1739416045382,-150.76613659,0.00015927,2]
[352910588,1739416045405,-150.0,0.00015933,2]
[352910589,1739416045429,-150.0,0.00015933,2]
[352910590,1739416045456,-150.0,0.00015933,2]
[352910591,1739416045480,-150.0,0.00015937,2]
[352910592,1739416045503,-150.0,0.00015942,2]
[352910593,1739416045527,-310.7868512,0.00015945,2]
[352910594,1739416045549,-3507.38284368,0.00015947,2]
[352910595,1739416045571,-150.76613659,0.00015947,2]
[352910596,1739416045592,-1004.75795664,0.00015955,2]
[352910597,1739416045615,-30441.20618295,0.00015956,2]
[352910609,1739416231570,-212.58776089,0.00014133,2]
[352910610,1739416231582,-600.25960577,0.00015,2]
[352910611,1739416231592,-500.02,0.00015179,2]
[352910612,1739416231605,-707.43263304,0.000152,4]
[352910613,1739416231617,-277.224,0.000152,4]
[352910614,1739416231651,-1506.34336696,0.000152,4]
[352910615,1739416231662,-150.0,0.00015546,2]
[352910616,1739416231673,-509.15,0.00015616,2]
[352910617,1739416231684,-900.0,0.00015651,2]
[352910618,1739416231695,-1000.0,0.00015651,2]
[352910619,1739416231706,-278.6756644,0.0001568,2]